[Event "Titled Tuesday Blitz May 10 Early 2022"]
[White "Horobetz, Graham"]
[Black "Lauridsen, Jesper Morch"]
[WhiteFideId "2047322"]
[BlackFideId "1401890"]
[WhiteElo "2574"]
[BlackElo "2221"]
[Result "1-0"]
[Round "01"]
[TimeControl "180+1"]
[Date "2022.05.11"]
[WhiteClock "0:00:47"]
[BlackClock "0:00:04"]

1. e4 {[%clk 0:03:00]}  e5 {[%clk 0:02:59]} 2. Nf3 {[%clk 0:03:00]}  Nf6 {[%clk 0:02:59]} 3. d4 {[%clk 0:02:59]}  Nxe4 {[%clk 0:02:58]} 4. Bd3 {[%clk 0:02:59]}  d5 {[%clk 0:02:57]} 5. Nxe5 {[%clk 0:02:59]}  Nd7 {[%clk 0:02:54]} 6. Nxd7 {[%clk 0:02:59]}  Bxd7 {[%clk 0:02:53]} 7. O-O {[%clk 0:03:00]}  Bd6 {[%clk 0:02:52]} 8. c4 {[%clk 0:02:59]}  O-O {[%clk 0:02:27]} 9. Nc3 {[%clk 0:02:57]}  Qh4 {[%clk 0:02:09]} 10. f4 {[%clk 0:02:21]}  Nxc3 {[%clk 0:01:56]} 11. bxc3 {[%clk 0:02:22]}  dxc4 {[%clk 0:01:54]} 12. Bxc4 {[%clk 0:02:20]}  Rae8 {[%clk 0:01:51]} 13. Bd2 {[%clk 0:02:12]}  Bg4 {[%clk 0:01:48]} 14. Qc2 {[%clk 0:02:03]}  Be2 {[%clk 0:01:32]} 15. Be1 {[%clk 0:02:02]}  Bxf1 {[%clk 0:01:32]} 16. Bxh4 {[%clk 0:01:59]}  Bxc4 {[%clk 0:01:32]} 17. Re1 {[%clk 0:01:40]}  Rxe1+ {[%clk 0:01:15]} 18. Bxe1 {[%clk 0:01:41]}  Bxf4 {[%clk 0:01:14]} 19. Qe4 {[%clk 0:01:36]}  Bd6 {[%clk 0:01:00]} 20. Bg3 {[%clk 0:01:32]}  Bxg3 {[%clk 0:00:55]} 21. hxg3 {[%clk 0:01:33]}  c6 {[%clk 0:00:56]} 22. a3 {[%clk 0:01:33]}  Bd5 {[%clk 0:00:54]} 23. Qe7 {[%clk 0:01:30]}  b5 {[%clk 0:00:46]} 24. Qxa7 {[%clk 0:01:29]}  Re8 {[%clk 0:00:46]} 25. a4 {[%clk 0:01:29]}  bxa4 {[%clk 0:00:44]} 26. Qxa4 {[%clk 0:01:30]}  g6 {[%clk 0:00:41]} 27. c4 {[%clk 0:01:29]}  Be6 {[%clk 0:00:30]} 28. d5 {[%clk 0:01:00]}  Bf5 {[%clk 0:00:09]} 29. Qxc6 {[%clk 0:00:59]}  Re2 {[%clk 0:00:07]} 30. d6 {[%clk 0:00:48]}  Be4 {[%clk 0:00:06]} 31. Qe8+ {[%clk 0:00:46]}  Kg7 {[%clk 0:00:06]} 32. d7 {[%clk 0:00:47]}  Rxg2+ {[%clk 0:00:04]} 33. Kf1 {[%clk 0:00:47]} 1-0


[Site "https://www.chess.com"]

[Event "Titled Tuesday Blitz May 10 Early 2022"]
[White "Jaskolka, Tomasz"]
[Black "Visakh N R"]
[WhiteFideId "1170791"]
[BlackFideId "25012223"]
[WhiteElo "2073"]
[BlackElo "2448"]
[Result "0-1"]
[Round "01"]
[TimeControl "180+1"]
[Date "2022.05.11"]
[WhiteClock "0:01:00"]
[BlackClock "0:01:06"]

1. d4 {[%clk 0:02:25]}  Nf6 {[%clk 0:02:54]} 2. Bf4 {[%clk 0:02:25]}  b6 {[%clk 0:02:53]} 3. c4 {[%clk 0:02:23]}  Bb7 {[%clk 0:02:52]} 4. Nc3 {[%clk 0:02:23]}  e6 {[%clk 0:02:52]} 5. e3 {[%clk 0:02:24]}  Bb4 {[%clk 0:02:48]} 6. Nf3 {[%clk 0:02:23]}  O-O {[%clk 0:02:48]} 7. Be2 {[%clk 0:02:21]}  d5 {[%clk 0:02:46]} 8. O-O {[%clk 0:02:19]}  dxc4 {[%clk 0:02:46]} 9. Bxc4 {[%clk 0:02:20]}  a6 {[%clk 0:02:38]} 10. h3 {[%clk 0:02:20]}  c5 {[%clk 0:02:36]} 11. dxc5 {[%clk 0:02:19]}  Bxc5 {[%clk 0:02:35]} 12. Qxd8 {[%clk 0:02:18]}  Rxd8 {[%clk 0:02:36]} 13. Rad1 {[%clk 0:02:18]}  Nbd7 {[%clk 0:02:28]} 14. Ne5 {[%clk 0:02:15]}  b5 {[%clk 0:02:25]} 15. Bb3 {[%clk 0:02:10]}  Nb6 {[%clk 0:02:20]} 16. a3 {[%clk 0:01:58]}  h6 {[%clk 0:02:18]} 17. Bh2 {[%clk 0:01:56]}  Rac8 {[%clk 0:02:14]} 18. Ne2 {[%clk 0:01:56]}  Bd5 {[%clk 0:02:10]} 19. Bxd5 {[%clk 0:01:52]}  Nfxd5 {[%clk 0:02:08]} 20. Nd4 {[%clk 0:01:50]}  Ne7 {[%clk 0:02:03]} 21. Nb3 {[%clk 0:01:38]}  Bd6 {[%clk 0:02:02]} 22. Nf3 {[%clk 0:01:37]}  Bxh2+ {[%clk 0:02:00]} 23. Kxh2 {[%clk 0:01:37]}  Na4 {[%clk 0:01:39]} 24. Rxd8+ {[%clk 0:01:23]}  Rxd8 {[%clk 0:01:40]} 25. Rb1 {[%clk 0:01:23]}  f6 {[%clk 0:01:40]} 26. Nbd2 {[%clk 0:01:16]}  Nd5 {[%clk 0:01:36]} 27. Nd4 {[%clk 0:01:08]}  e5 {[%clk 0:01:33]} 28. N4f3 {[%clk 0:01:03]}  Rc8 {[%clk 0:01:31]} 29. b3 {[%clk 0:01:02]}  Nab6 {[%clk 0:01:30]} 30. Rd1 {[%clk 0:01:01]}  Rc2 {[%clk 0:01:23]} 31. Kg3 {[%clk 0:00:58]}  Nc3 {[%clk 0:01:21]} 32. Ra1 {[%clk 0:00:55]}  e4 {[%clk 0:01:19]} 33. Nxe4 {[%clk 0:00:48]}  Nxe4+ {[%clk 0:01:18]} 34. Kf4 {[%clk 0:00:48]}  Nxf2 {[%clk 0:01:17]} 35. a4 {[%clk 0:00:49]}  Nd5+ {[%clk 0:01:16]} 36. Kg3 {[%clk 0:00:49]}  Ne4+ {[%clk 0:01:16]} 37. Kh2 {[%clk 0:00:49]}  Nxe3 {[%clk 0:01:15]} 38. Ne1 {[%clk 0:00:49]}  Rb2 {[%clk 0:01:12]} 39. axb5 {[%clk 0:00:49]}  axb5 {[%clk 0:01:11]} 40. Kh1 {[%clk 0:00:49]}  Ng3+ {[%clk 0:01:10]} 41. Kg1 {[%clk 0:00:49]}  Nc2 {[%clk 0:01:07]} 42. Nxc2 {[%clk 0:00:49]}  Rxc2 {[%clk 0:01:08]} 43. Ra5 {[%clk 0:00:49]}  Ne2+ {[%clk 0:01:07]} 44. Kf2 {[%clk 0:00:49]}  Nd4+ {[%clk 0:01:07]} 45. Ke3 {[%clk 0:00:48]}  Nxb3 {[%clk 0:01:06]} 46. Rxb5 {[%clk 0:00:49]}  Rxg2 {[%clk 0:01:06]} 47. Kf3 {[%clk 0:00:49]}  Nd4+ {[%clk 0:01:06]} 48. Kxg2 {[%clk 0:00:49]}  Nxb5 {[%clk 0:01:07]} 49. Kg3 {[%clk 0:00:50]}  Kf7 {[%clk 0:01:07]} 50. Kh4 {[%clk 0:00:51]}  g5+ {[%clk 0:01:07]} 51. Kh5 {[%clk 0:00:51]}  Nd4 {[%clk 0:01:06]} 52. h4 {[%clk 0:00:52]}  Nf5 {[%clk 0:01:04]} 53. hxg5 {[%clk 0:00:52]}  hxg5 {[%clk 0:01:05]} 54. Kg4 {[%clk 0:00:53]}  Kg6 {[%clk 0:01:05]} 55. Kh3 {[%clk 0:00:53]}  Nh6 {[%clk 0:01:05]} 56. Kg2 {[%clk 0:00:54]}  f5 {[%clk 0:01:06]} 57. Kg3 {[%clk 0:00:54]}  g4 {[%clk 0:01:07]} 58. Kf4 {[%clk 0:00:55]}  Kf6 {[%clk 0:01:07]} 59. Kg3 {[%clk 0:00:55]}  Kg5 {[%clk 0:01:08]} 60. Kh2 {[%clk 0:00:55]}  f4 {[%clk 0:01:08]} 61. Kg2 {[%clk 0:00:56]}  f3+ {[%clk 0:01:08]} 62. Kh2 {[%clk 0:00:57]}  Kf4 {[%clk 0:01:08]} 63. Kg1 {[%clk 0:00:58]}  g3 {[%clk 0:01:09]} 64. Kh1 {[%clk 0:00:58]}  Ng4 {[%clk 0:01:09]} 65. Kg1 {[%clk 0:00:59]}  Ne3 {[%clk 0:01:06]} 66. Kh1 {[%clk 0:00:59]}  Kg4 {[%clk 0:01:05]} 67. Kg1 {[%clk 0:00:59]}  f2+ {[%clk 0:01:05]} 68. Kh1 {[%clk 0:01:00]}  g2+ {[%clk 0:01:05]} 69. Kh2 {[%clk 0:01:00]}  g1=Q# {[%clk 0:01:06]} 0-1


[Site "https://www.chess.com"]

[Event "Titled Tuesday Blitz May 10 Early 2022"]
[White "Jeet, Jain"]
[Black "parintele_chess"]
[WhiteFideId "5073022"]
[WhiteElo "2028"]
[BlackElo "2210"]
[Result "1-0"]
[Round "01"]
[TimeControl "180+1"]
[Date "2022.05.11"]
[WhiteClock "0:00:26"]
[BlackClock "0:00:01"]

1. Nf3 {[%clk 0:02:56]}  Nf6 {[%clk 0:02:59]} 2. e3 {[%clk 0:02:54]}  g6 {[%clk 0:02:58]} 3. b3 {[%clk 0:02:54]}  Bg7 {[%clk 0:02:58]} 4. Bb2 {[%clk 0:02:54]}  O-O {[%clk 0:02:58]} 5. c4 {[%clk 0:02:55]}  c5 {[%clk 0:02:57]} 6. Nc3 {[%clk 0:02:53]}  d5 {[%clk 0:02:56]} 7. d4 {[%clk 0:02:47]}  cxd4 {[%clk 0:02:54]} 8. exd4 {[%clk 0:02:46]}  Nc6 {[%clk 0:02:54]} 9. Be2 {[%clk 0:02:44]}  Bg4 {[%clk 0:02:51]} 10. c5 {[%clk 0:02:41]}  b6 {[%clk 0:02:42]} 11. cxb6 {[%clk 0:02:37]}  Qxb6 {[%clk 0:02:43]} 12. Na4 {[%clk 0:02:38]}  Qd8 {[%clk 0:02:24]} 13. O-O {[%clk 0:02:34]}  Ne4 {[%clk 0:02:23]} 14. h3 {[%clk 0:02:33]}  Bd7 {[%clk 0:02:05]} 15. Rc1 {[%clk 0:02:28]}  Rc8 {[%clk 0:02:02]} 16. Nc5 {[%clk 0:02:20]}  Bf5 {[%clk 0:01:46]} 17. g4 {[%clk 0:02:13]}  Nxc5 {[%clk 0:01:43]} 18. Rxc5 {[%clk 0:02:05]}  Be4 {[%clk 0:01:42]} 19. Nd2 {[%clk 0:02:00]}  Bxd4 {[%clk 0:00:51]} 20. Bxd4 {[%clk 0:01:58]}  Nxd4 {[%clk 0:00:50]} 21. Nxe4 {[%clk 0:01:58]}  Nxe2+ {[%clk 0:00:49]} 22. Qxe2 {[%clk 0:01:58]}  dxe4 {[%clk 0:00:49]} 23. Rxc8 {[%clk 0:01:58]}  Qxc8 {[%clk 0:00:50]} 24. Qxe4 {[%clk 0:01:59]}  e6 {[%clk 0:00:44]} 25. Qd4 {[%clk 0:01:57]}  Qc2 {[%clk 0:00:40]} 26. Qxa7 {[%clk 0:01:56]}  Rd8 {[%clk 0:00:35]} 27. Qb6 {[%clk 0:01:36]}  Rd3 {[%clk 0:00:33]} 28. Qb8+ {[%clk 0:01:25]}  Kg7 {[%clk 0:00:31]} 29. Qe5+ {[%clk 0:01:24]}  Kg8 {[%clk 0:00:26]} 30. Kg2 {[%clk 0:01:17]}  Qxa2 {[%clk 0:00:20]} 31. Ra1 {[%clk 0:01:17]}  Qd2 {[%clk 0:00:15]} 32. Ra8+ {[%clk 0:00:57]}  Rd8 {[%clk 0:00:14]} 33. Rxd8+ {[%clk 0:00:58]}  Qxd8 {[%clk 0:00:15]} 34. b4 {[%clk 0:00:57]}  Qa8+ {[%clk 0:00:12]} 35. Kg3 {[%clk 0:00:54]}  Qa3+ {[%clk 0:00:12]} 36. f3 {[%clk 0:00:52]}  Qxb4 {[%clk 0:00:12]} 37. h4 {[%clk 0:00:52]}  Qd2 {[%clk 0:00:08]} 38. h5 {[%clk 0:00:45]}  Qd5 {[%clk 0:00:06]} 39. Qb8+ {[%clk 0:00:38]}  Kg7 {[%clk 0:00:06]} 40. Qb2+ {[%clk 0:00:38]}  e5 {[%clk 0:00:05]} 41. Qc1 {[%clk 0:00:33]}  e4 {[%clk 0:00:02]} 42. h6+ {[%clk 0:00:32]}  Kf6 {[%clk 0:00:02]} 43. Qf4+ {[%clk 0:00:32]}  Ke6 {[%clk 0:00:02]} 44. fxe4 {[%clk 0:00:31]}  Qd3+ {[%clk 0:00:02]} 45. Kh4 {[%clk 0:00:30]}  Qd8+ {[%clk 0:00:01]} 46. g5 {[%clk 0:00:29]}  Qd6 {[%clk 0:00:01]} 47. Qf6+ {[%clk 0:00:28]}  Kd7 {[%clk 0:00:01]} 48. Qxf7+ {[%clk 0:00:29]}  Kc6 {[%clk 0:00:01]} 49. Qc4+ {[%clk 0:00:25]}  Kb6 {[%clk 0:00:01]} 50. Qb3+ {[%clk 0:00:25]}  Kc6 {[%clk 0:00:01]} 51. Qg3 {[%clk 0:00:26]} 1-0


[Site "https://www.chess.com"]

[Event "Titled Tuesday Blitz May 10 Early 2022"]
[White "Jobava, Baadur"]
[Black "Ronka, Erik"]
[WhiteFideId "13601520"]
[BlackFideId "505080"]
[WhiteElo "2617"]
[BlackElo "2264"]
[Result "0-1"]
[Round "01"]
[TimeControl "180+1"]
[Date "2022.05.10"]
[WhiteClock "0:00:33"]
[BlackClock "0:00:11"]

1. e4 {[%clk 0:02:52]}  c5 {[%clk 0:03:00]} 2. Nf3 {[%clk 0:02:51]}  e6 {[%clk 0:03:00]} 3. d4 {[%clk 0:02:51]}  cxd4 {[%clk 0:03:01]} 4. Nxd4 {[%clk 0:02:52]}  Nf6 {[%clk 0:03:01]} 5. Nc3 {[%clk 0:02:52]}  d6 {[%clk 0:03:01]} 6. Bd3 {[%clk 0:02:50]}  Nc6 {[%clk 0:02:58]} 7. Be3 {[%clk 0:02:50]}  Be7 {[%clk 0:02:58]} 8. O-O {[%clk 0:02:50]}  O-O {[%clk 0:02:58]} 9. h3 {[%clk 0:02:48]}  Nxd4 {[%clk 0:02:46]} 10. Bxd4 {[%clk 0:02:48]}  e5 {[%clk 0:02:47]} 11. Be3 {[%clk 0:02:48]}  Be6 {[%clk 0:02:48]} 12. Qe2 {[%clk 0:02:43]}  h6 {[%clk 0:02:31]} 13. Rfd1 {[%clk 0:02:43]}  a6 {[%clk 0:02:31]} 14. a4 {[%clk 0:02:43]}  Qa5 {[%clk 0:02:23]} 15. Qd2 {[%clk 0:02:36]}  Qb4 {[%clk 0:02:14]} 16. a5 {[%clk 0:02:31]}  Rac8 {[%clk 0:02:08]} 17. Na4 {[%clk 0:02:27]}  Qxd2 {[%clk 0:02:02]} 18. Rxd2 {[%clk 0:02:28]}  d5 {[%clk 0:01:33]} 19. Nb6 {[%clk 0:02:28]}  d4 {[%clk 0:01:30]} 20. Nxc8 {[%clk 0:02:24]}  Rxc8 {[%clk 0:01:31]} 21. Bxd4 {[%clk 0:02:21]}  exd4 {[%clk 0:01:32]} 22. e5 {[%clk 0:02:21]}  Nd7 {[%clk 0:01:27]} 23. Be4 {[%clk 0:02:20]}  Rc7 {[%clk 0:01:19]} 24. f4 {[%clk 0:02:17]}  Bb4 {[%clk 0:01:14]} 25. Rdd1 {[%clk 0:02:13]}  f5 {[%clk 0:01:09]} 26. Ra4 {[%clk 0:01:52]}  Be7 {[%clk 0:00:47]} 27. Bd3 {[%clk 0:01:52]}  Nc5 {[%clk 0:00:45]} 28. Rxd4 {[%clk 0:01:19]}  Nxd3 {[%clk 0:00:44]} 29. R4xd3 {[%clk 0:01:20]}  Rxc2 {[%clk 0:00:44]} 30. Rc3 {[%clk 0:01:20]}  Rxc3 {[%clk 0:00:32]} 31. bxc3 {[%clk 0:01:21]}  Kf8 {[%clk 0:00:32]} 32. Kf2 {[%clk 0:01:20]}  Ke8 {[%clk 0:00:32]} 33. Kf3 {[%clk 0:01:18]}  Bd8 {[%clk 0:00:33]} 34. Ra1 {[%clk 0:01:15]}  Kd7 {[%clk 0:00:31]} 35. g4 {[%clk 0:01:15]}  Kc6 {[%clk 0:00:28]} 36. Rd1 {[%clk 0:01:13]}  Bc7 {[%clk 0:00:25]} 37. Rg1 {[%clk 0:01:10]}  g6 {[%clk 0:00:24]} 38. gxf5 {[%clk 0:01:07]}  Bxf5 {[%clk 0:00:25]} 39. h4 {[%clk 0:01:08]}  h5 {[%clk 0:00:23]} 40. Ra1 {[%clk 0:01:08]}  Kc5 {[%clk 0:00:23]} 41. Re1 {[%clk 0:00:59]}  Kd5 {[%clk 0:00:20]} 42. c4+ {[%clk 0:00:57]}  Ke6 {[%clk 0:00:19]} 43. Ra1 {[%clk 0:00:57]}  Bd3 {[%clk 0:00:19]} 44. Ke3 {[%clk 0:00:52]}  Bf5 {[%clk 0:00:19]} 45. Kd4 {[%clk 0:00:52]}  Bd8 {[%clk 0:00:19]} 46. Kc5 {[%clk 0:00:50]}  Bxh4 {[%clk 0:00:17]} 47. Rd1 {[%clk 0:00:50]}  Bf2+ {[%clk 0:00:17]} 48. Kb4 {[%clk 0:00:50]}  h4 {[%clk 0:00:14]} 49. Rd2 {[%clk 0:00:44]}  Be3 {[%clk 0:00:13]} 50. Rd6+ {[%clk 0:00:40]}  Ke7 {[%clk 0:00:14]} 51. c5 {[%clk 0:00:40]}  h3 {[%clk 0:00:12]} 52. Rb6 {[%clk 0:00:39]}  Be4 {[%clk 0:00:10]} 53. f5 {[%clk 0:00:38]}  h2 {[%clk 0:00:09]} 54. f6+ {[%clk 0:00:35]}  Kf7 {[%clk 0:00:09]} 55. Rd6 {[%clk 0:00:32]}  h1=Q {[%clk 0:00:09]} 56. Rd7+ {[%clk 0:00:33]}  Kf8 {[%clk 0:00:09]} 57. Rd8+ {[%clk 0:00:33]}  Kf7 {[%clk 0:00:09]} 58. Rd7+ {[%clk 0:00:34]}  Ke6 {[%clk 0:00:10]} 59. Re7+ {[%clk 0:00:32]}  Kf5 {[%clk 0:00:10]} 60. f7 {[%clk 0:00:33]}  Qb1+ {[%clk 0:00:11]} 0-1


[Site "https://www.chess.com"]

[Event "Titled Tuesday Blitz May 10 Early 2022"]
[White "Juhasz, Agoston"]
[Black "Van den Dikkenberg, Erik"]
[WhiteFideId "778346"]
[BlackFideId "1005880"]
[WhiteElo "2211"]
[BlackElo "2118"]
[Result "1-0"]
[Round "01"]
[TimeControl "180+1"]
[Date "2022.05.11"]
[WhiteClock "0:00:39"]
[BlackClock "0:00:25"]

1. Nf3 {[%clk 0:03:00]}  c5 {[%clk 0:02:58]} 2. e4 {[%clk 0:02:59]}  d6 {[%clk 0:02:57]} 3. Bb5+ {[%clk 0:02:59]}  Nd7 {[%clk 0:02:57]} 4. O-O {[%clk 0:02:58]}  Nf6 {[%clk 0:02:57]} 5. Re1 {[%clk 0:02:57]}  g6 {[%clk 0:02:56]} 6. c3 {[%clk 0:02:57]}  Bg7 {[%clk 0:02:56]} 7. d4 {[%clk 0:02:57]}  O-O {[%clk 0:02:55]} 8. h3 {[%clk 0:02:53]}  a6 {[%clk 0:02:54]} 9. Bf1 {[%clk 0:02:53]}  b5 {[%clk 0:02:52]} 10. a4 {[%clk 0:02:53]}  b4 {[%clk 0:02:47]} 11. Nbd2 {[%clk 0:02:49]}  Bb7 {[%clk 0:02:44]} 12. d5 {[%clk 0:02:46]}  a5 {[%clk 0:02:34]} 13. Nc4 {[%clk 0:02:44]}  Ne8 {[%clk 0:02:14]} 14. Qc2 {[%clk 0:02:31]}  Ne5 {[%clk 0:02:10]} 15. Nfxe5 {[%clk 0:02:28]}  dxe5 {[%clk 0:02:10]} 16. Ne3 {[%clk 0:02:18]}  Nd6 {[%clk 0:02:08]} 17. c4 {[%clk 0:02:18]}  Bc8 {[%clk 0:02:02]} 18. Bd2 {[%clk 0:02:04]}  f5 {[%clk 0:01:55]} 19. f3 {[%clk 0:02:05]}  fxe4 {[%clk 0:01:52]} 20. fxe4 {[%clk 0:02:04]}  Bh6 {[%clk 0:01:41]} 21. Be2 {[%clk 0:02:02]}  Bf4 {[%clk 0:01:36]} 22. Rf1 {[%clk 0:01:59]}  Bd7 {[%clk 0:01:32]} 23. Bg4 {[%clk 0:01:50]}  Bxg4 {[%clk 0:01:21]} 24. Nxg4 {[%clk 0:01:51]}  Qd7 {[%clk 0:01:09]} 25. Bxf4 {[%clk 0:01:24]}  exf4 {[%clk 0:01:09]} 26. Ne5 {[%clk 0:01:24]}  Qc7 {[%clk 0:01:05]} 27. Nc6 {[%clk 0:01:17]}  Rf7 {[%clk 0:00:59]} 28. e5 {[%clk 0:01:05]}  Nf5 {[%clk 0:00:58]} 29. Rxf4 {[%clk 0:01:05]}  Raf8 {[%clk 0:00:56]} 30. Qd2 {[%clk 0:00:50]}  Ng3 {[%clk 0:00:36]} 31. Rxf7 {[%clk 0:00:50]}  Rxf7 {[%clk 0:00:36]} 32. Re1 {[%clk 0:00:50]}  Nf5 {[%clk 0:00:31]} 33. Rf1 {[%clk 0:00:47]}  Kg7 {[%clk 0:00:27]} 34. b3 {[%clk 0:00:42]}  Qd7 {[%clk 0:00:25]} 35. e6 {[%clk 0:00:39]} 1-0


[Site "https://www.chess.com"]

[Event "Titled Tuesday Blitz May 10 Early 2022"]
[White "Kazakouski, Valery"]
[Black "Akhmedinov, Satbek"]
[WhiteFideId "13507443"]
[BlackFideId "13714287"]
[WhiteElo "2524"]
[BlackElo "1846"]
[Result "1-0"]
[Round "01"]
[TimeControl "180+1"]
[Date "2022.05.11"]
[WhiteClock "0:01:32"]
[BlackClock "0:00:37"]

1. d4 {[%clk 0:02:59]}  Nf6 {[%clk 0:02:57]} 2. c3 {[%clk 0:02:58]}  g6 {[%clk 0:02:58]} 3. Bg5 {[%clk 0:02:55]}  d5 {[%clk 0:02:57]} 4. Bxf6 {[%clk 0:02:55]}  exf6 {[%clk 0:02:58]} 5. e3 {[%clk 0:02:55]}  Bg7 {[%clk 0:02:57]} 6. Nf3 {[%clk 0:02:56]}  c6 {[%clk 0:02:57]} 7. Bd3 {[%clk 0:02:56]}  Nd7 {[%clk 0:02:57]} 8. O-O {[%clk 0:02:54]}  O-O {[%clk 0:02:56]} 9. c4 {[%clk 0:02:55]}  Nb6 {[%clk 0:02:51]} 10. cxd5 {[%clk 0:02:53]}  Nxd5 {[%clk 0:02:50]} 11. Nc3 {[%clk 0:02:53]}  f5 {[%clk 0:02:48]} 12. Qb3 {[%clk 0:02:49]}  Nb6 {[%clk 0:02:40]} 13. Rac1 {[%clk 0:02:47]}  Be6 {[%clk 0:02:35]} 14. Qc2 {[%clk 0:02:46]}  f4 {[%clk 0:02:31]} 15. exf4 {[%clk 0:02:32]}  Bd5 {[%clk 0:02:22]} 16. Ne5 {[%clk 0:02:29]}  f6 {[%clk 0:02:01]} 17. Ng4 {[%clk 0:02:23]}  f5 {[%clk 0:02:00]} 18. Ne5 {[%clk 0:02:22]}  Bh6 {[%clk 0:01:57]} 19. g3 {[%clk 0:02:19]}  Kh8 {[%clk 0:01:42]} 20. Rfe1 {[%clk 0:02:12]}  Rc8 {[%clk 0:01:27]} 21. a4 {[%clk 0:02:08]}  Bg8 {[%clk 0:01:08]} 22. Rcd1 {[%clk 0:01:50]}  Nd5 {[%clk 0:01:01]} 23. Bc4 {[%clk 0:01:44]}  Nf6 {[%clk 0:00:58]} 24. Bxg8 {[%clk 0:01:41]}  Nxg8 {[%clk 0:00:56]} 25. Qb3 {[%clk 0:01:41]}  b6 {[%clk 0:00:53]} 26. Nf7+ {[%clk 0:01:40]}  Rxf7 {[%clk 0:00:53]} 27. Qxf7 {[%clk 0:01:41]}  Rc7 {[%clk 0:00:52]} 28. Qe8 {[%clk 0:01:40]}  Qd6 {[%clk 0:00:38]} 29. d5 {[%clk 0:01:38]}  Bg7 {[%clk 0:00:38]} 30. dxc6 {[%clk 0:01:37]}  Qxc6 {[%clk 0:00:39]} 31. Rd8 {[%clk 0:01:34]}  Qc4 {[%clk 0:00:37]} 32. Nd5 {[%clk 0:01:32]} 1-0


[Site "https://www.chess.com"]

[Event "Titled Tuesday Blitz May 10 Early 2022"]
[White "Kohler, Aran"]
[Black "Guz, Ari"]
[WhiteFideId "1002856"]
[BlackFideId "2825759"]
[WhiteElo "2304"]
[BlackElo "1913"]
[Result "1-0"]
[Round "01"]
[TimeControl "180+1"]
[Date "2022.05.11"]
[WhiteClock "0:01:41"]
[BlackClock "0:00:37"]

1. d4 {[%clk 0:02:55]}  d5 {[%clk 0:02:51]} 2. Nf3 {[%clk 0:02:54]}  Bf5 {[%clk 0:02:49]} 3. c4 {[%clk 0:02:44]}  c6 {[%clk 0:02:49]} 4. Nc3 {[%clk 0:02:42]}  e6 {[%clk 0:02:49]} 5. Qb3 {[%clk 0:02:35]}  Qb6 {[%clk 0:02:49]} 6. c5 {[%clk 0:02:35]}  Qa6 {[%clk 0:02:46]} 7. e4 {[%clk 0:02:32]}  b5 {[%clk 0:02:42]} 8. exf5 {[%clk 0:02:31]}  exf5 {[%clk 0:02:42]} 9. Bd3 {[%clk 0:02:30]}  g6 {[%clk 0:02:42]} 10. O-O {[%clk 0:02:28]}  Nf6 {[%clk 0:02:41]} 11. Re1+ {[%clk 0:02:28]}  Ne4 {[%clk 0:02:41]} 12. Ne5 {[%clk 0:02:16]}  Bg7 {[%clk 0:01:43]} 13. f3 {[%clk 0:02:13]}  Bxe5 {[%clk 0:01:43]} 14. fxe4 {[%clk 0:02:02]}  Bxd4+ {[%clk 0:01:44]} 15. Be3 {[%clk 0:02:02]}  Bxe3+ {[%clk 0:01:44]} 16. Rxe3 {[%clk 0:02:00]}  d4 {[%clk 0:01:44]} 17. Ree1 {[%clk 0:01:53]}  dxc3 {[%clk 0:01:43]} 18. exf5+ {[%clk 0:01:54]}  Kf8 {[%clk 0:01:43]} 19. Qxc3 {[%clk 0:01:53]}  Rg8 {[%clk 0:01:31]} 20. f6 {[%clk 0:01:53]}  Nd7 {[%clk 0:01:26]} 21. a4 {[%clk 0:01:54]}  Re8 {[%clk 0:01:03]} 22. axb5 {[%clk 0:01:52]}  Qc8 {[%clk 0:00:58]} 23. Rxe8+ {[%clk 0:01:46]}  Qxe8 {[%clk 0:00:47]} 24. bxc6 {[%clk 0:01:46]}  Ne5 {[%clk 0:00:44]} 25. Re1 {[%clk 0:01:45]}  Qxc6 {[%clk 0:00:44]} 26. Qxe5 {[%clk 0:01:44]}  Qd7 {[%clk 0:00:37]} 27. Qb8+ {[%clk 0:01:41]} 1-0


[Site "https://www.chess.com"]

[Event "Titled Tuesday Blitz May 10 Early 2022"]
[White "Leiva, Gianmarco"]
[Black "Demin, Vladimir"]
[WhiteFideId "3804399"]
[BlackFideId "4167457"]
[WhiteElo "2323"]
[BlackElo "2428"]
[Result "0-1"]
[Round "01"]
[TimeControl "180+1"]
[Date "2022.05.11"]
[WhiteClock "0:00:01"]
[BlackClock "0:00:11"]

1. Nf3 {[%clk 0:03:00]}  d5 {[%clk 0:02:58]} 2. g3 {[%clk 0:03:00]}  Nd7 {[%clk 0:02:57]} 3. d4 {[%clk 0:02:54]}  Ngf6 {[%clk 0:02:54]} 4. Bg2 {[%clk 0:02:54]}  e6 {[%clk 0:02:54]} 5. O-O {[%clk 0:02:55]}  b5 {[%clk 0:02:55]} 6. c3 {[%clk 0:02:47]}  Bb7 {[%clk 0:02:54]} 7. a4 {[%clk 0:02:46]}  b4 {[%clk 0:02:53]} 8. a5 {[%clk 0:02:47]}  Ba6 {[%clk 0:02:35]} 9. Re1 {[%clk 0:02:41]}  Be7 {[%clk 0:02:12]} 10. Bg5 {[%clk 0:02:17]}  O-O {[%clk 0:02:06]} 11. Bxf6 {[%clk 0:02:17]}  gxf6 {[%clk 0:02:02]} 12. e4 {[%clk 0:02:12]}  dxe4 {[%clk 0:02:02]} 13. Rxe4 {[%clk 0:02:12]}  f5 {[%clk 0:01:56]} 14. Re1 {[%clk 0:02:07]}  Bb7 {[%clk 0:01:56]} 15. a6 {[%clk 0:02:03]}  Bd5 {[%clk 0:01:53]} 16. Ra5 {[%clk 0:01:25]}  c6 {[%clk 0:01:32]} 17. Ra4 {[%clk 0:01:03]}  Rb8 {[%clk 0:01:28]} 18. Nbd2 {[%clk 0:01:02]}  Nb6 {[%clk 0:01:24]} 19. Ra1 {[%clk 0:00:56]}  bxc3 {[%clk 0:01:16]} 20. bxc3 {[%clk 0:00:56]}  Bf6 {[%clk 0:01:15]} 21. Qe2 {[%clk 0:00:48]}  c5 {[%clk 0:00:59]} 22. dxc5 {[%clk 0:00:47]}  Nd7 {[%clk 0:00:58]} 23. Qe3 {[%clk 0:00:38]}  Qc7 {[%clk 0:00:56]} 24. Qh6 {[%clk 0:00:38]}  Bg7 {[%clk 0:00:55]} 25. Qh4 {[%clk 0:00:38]}  Qxc5 {[%clk 0:00:49]} 26. Rac1 {[%clk 0:00:33]}  Rb2 {[%clk 0:00:45]} 27. c4 {[%clk 0:00:17]}  Ba8 {[%clk 0:00:42]} 28. Re3 {[%clk 0:00:15]}  h6 {[%clk 0:00:36]} 29. Nb3 {[%clk 0:00:11]}  Qa3 {[%clk 0:00:30]} 30. Nbd4 {[%clk 0:00:08]}  Qxa6 {[%clk 0:00:30]} 31. Rd3 {[%clk 0:00:02]}  Nc5 {[%clk 0:00:29]} 32. Rdd1 {[%clk 0:00:02]}  Ne4 {[%clk 0:00:21]} 33. Rf1 {[%clk 0:00:02]}  Nd2 {[%clk 0:00:18]} 34. Nxd2 {[%clk 0:00:02]}  Bxg2 {[%clk 0:00:18]} 35. Kxg2 {[%clk 0:00:02]}  Rxd2 {[%clk 0:00:18]} 36. Nf3 {[%clk 0:00:02]}  Rd3 {[%clk 0:00:16]} 37. Qf4 {[%clk 0:00:02]}  Qc6 {[%clk 0:00:16]} 38. Rfe1 {[%clk 0:00:02]}  Bf6 {[%clk 0:00:12]} 39. Re3 {[%clk 0:00:02]}  Bg5 {[%clk 0:00:11]} 40. Qe5 {[%clk 0:00:01]}  Bxe3 {[%clk 0:00:10]} 41. fxe3 {[%clk 0:00:01]}  Rd2+ {[%clk 0:00:10]} 42. Kg1 {[%clk 0:00:01]}  Qxf3 {[%clk 0:00:11]} 43. Qf4 {[%clk 0:00:01]}  Qg2# {[%clk 0:00:11]} 0-1


[Site "https://www.chess.com"]